Cogmind - Beta 15 @@@ ROGUE MODE // 2025.08.08 @ 21:59:27 Player: Zoe Result: Destroyed by L-31 Rogue with Katana Performance ------------- Evolutions (1) 500 Regions Visited (3) 600 Robots Destroyed (21) 105 Value Destroyed (585) 585 Prototype IDs (0) 0 Alien Tech Used (0) 0 Bonus (0) 0 TOTAL SCORE: 1790 Bonus ------- None Cogmind --------- Core Integrity 0/400 Matter 212/300 Energy 61/265 System Corruption 10% Temperature Cool (0) Movement Core (250) Ox4 Location -9/Storage Parts ------- > --- POWER (1) -------- Improved Ion Engine > --- PROPULSION (2) --- (None) > --- UTILITY (4) ------ Small Storage Unit Signal Interpreter Hacking Suite > --- WEAPON (2) ------- Mining Claw > --- INVENTORY (8) ---- Aluminum Leg Aluminum Leg Seismic Detector Small Laser Grenade Launcher Peak State ------------ > --- POWER ------------ Light Ion Engine > --- PROPULSION ------- Aluminum Leg Aluminum Leg > --- UTILITY ---------- Small Storage Unit Signal Interpreter Improved Terrain Scanner Hacking Suite > --- WEAPON ----------- Heavy Assault Rifle Mining Claw > --- INVENTORY -------- Seismic Detector Medium Laser Small Laser Beam Rifle Grenade Launcher [Rating: 14] Favorites ----------- Power Light Ion Engine Engine Light Ion Engine Propulsion Light Treads Treads Light Treads Leg Aluminum Leg Utility Small Storage Unit Device Improved Terrain Scanner Storage Small Storage Unit Processor Signal Interpreter Hackware Hacking Suite Weapon Medium Laser Energy Gun Medium Laser Ballistic Gun Heavy Assault Rifle Special Weapon Mining Laser Slashing Weapon Mining Claw Build | -11 -10 -9 -9 ------- Run | Yrd Mat Mat Sto Slots Evolved 2 | . . 2 . Power . | . . . . Propulsion . | . . . . Utility 2 | . . 2 . Weapon . | . . . . Parts Attached 22 | 8 2 5 7 Power 3 | 1 1 . 1 Engine 3 | 1 1 . 1 Core . | . . . . Reactor . | . . . . Propulsion 6 | 2 . 2 2 Treads 2 | 2 . . . Leg 4 | . . 2 2 Wheel . | . . . . Hover . | . . . . Flight . | . . . . Utility 5 | 2 . 2 1 Device 2 | 1 . 1 . Storage 1 | 1 . . . Processor 1 | . . 1 . Hackware 1 | . . . 1 Protection . | . . . . Artifact . | . . . . Weapon 8 | 3 1 1 3 Energy Gun 4 | 3 . . 1 Energy Cannon . | . . . . Ballistic Gun 2 | . . . 2 Ballistic Cannon . | . . . . Launcher . | . . . . Special Weapon 1 | . 1 . . Impact Weapon . | . . . . Slashing Weapon 1 | . . 1 . Piercing Weapon . | . . . . Special Melee Weapon . | . . . . Unidentified Prototypes . | . . . . Parts Lost 13 | . 1 4 8 Power 2 | . 1 . 1 Propulsion 4 | . . 2 2 Utility 2 | . . 1 1 Weapon 5 | . . 1 4 Highest Loss Streak 5 | . 1 3 5 To Critical Strikes . | . . . . Average Backups 5 | 4 6 5 6 Power . | . . . . Propulsion 1 | 2 1 . 1 Utility 1 | . 2 1 1 Weapon 3 | 1 2 4 4 Tool/Special . | . . . . Unused Backups 7 | 1 2 . 4 Power . | . . . . Propulsion 5 | 1 2 . 2 Utility 1 | . . . 1 Weapon 1 | . . . 1 Tool/Special . | . . . . Average Slot Usage (%) 86 | . 98 88 71 Engine 9 | . 12 11 6 Treads 13 | . 28 11 . Leg 5 | . . 9 7 Device 14 | . 14 21 8 Storage 12 | . 14 11 11 Processor 6 | . . 10 11 Hackware 3 | . . . 11 Energy Gun 11 | . 24 6 2 Ballistic Gun 1 | . . . 5 Special Weapon 1 | . 3 . . Slashing Weapon 5 | . . 7 8 Peak Build Rating 14 | 9 9 11 14 Average Rating 9 | 5 8 10 10 On Entrance 6 | . 9 9 8 Naked Turns . | . . . . Heaviest Build 14 | 12 13 14 14 Greatest Support 40 | 40 40 40 20 Greatest Overweight (x) 3 | 3 . 3 3 Average Overweight (x) . | . . . 1 Largest Inventory Capacity 8 | 8 8 8 8 Average Capacity 7 | 7 8 8 8 Most Carried 8 | 7 8 7 8 Average Carried 5 | 4 6 5 6 Final Capacity 8 | 8 8 8 8 Final Carried 7 | 6 6 7 5 Class Distribution -------------------- 71% | Mutant 19% | Assassin 9% | Skirmisher Dominant Class ---------------- Mutant | -10/Materials Assassin | -9/Materials Mutant | -9/Storage Resources | -11 -10 -9 -9 ----------- Run | Yrd Mat Mat Sto Matter Collected 410 | 280 35 45 50 Remotely . | . . . . Salvage Created 781 | 138 201 106 336 Parts 41 | 9 6 10 16 Haulers Intercepted . | . . . . Recyclers Shooed . | . . . . Parts Field Recycled . | . . . . Retrieved Matter . | . . . . Parts Self-Destructed . | . . . . Prevented . | . . . . Kills | -11 -10 -9 -9 ------- Run | Yrd Mat Mat Sto Combat Hostiles Destroyed 15 | . 4 2 9 Melee 4 | . . 2 2 Guns 9 | . 2 . 7 AOE 2 | . 2 . . Classes Destroyed 6 | 2 1 2 1 Tunneler 4 | 4 . . . Recycler 1 | 1 . . . Operator 1 | . . 1 . Swarmer 3 | . . . 3 Grunt 8 | . 4 1 3 Sentry 4 | . . 1 3 Best Kill Streak 7 | 3 2 3 7 Combat Bots Only 7 | . 2 1 7 Max Kills in Single Turn 1 | 1 1 1 1 Gunslinging . | . . . . Exploded 1 | . 1 . . Melee 1 | . . 1 1 Uniques/NPCs Destroyed . | . . . . Combat | -11 -10 -9 -9 -------- Run | Yrd Mat Mat Sto Hostile Shots Fired 151 | . 26 16 109 Missed 35 | . 7 2 26 Hits 116 | . 19 14 83 Melee 3 | . . . 3 Projectile 113 | . 19 14 80 Critical Strikes 3 | . . . 3 Damage Taken 1894 | . 317 459 1118 Core 475 | . 48 58 369 Absorbed by Shields . | . . . . Core Remaining (%) 90 | 100 80 . . Volleys Fired 39 | 8 16 . 15 Largest 2 | 2 2 . 2 Hottest 106 | 90 100 . 106 Shots Fired 76 | 16 30 . 30 Gun 74 | 16 28 . 30 Cannon . | . . . . Launcher . | . . . . Special 2 | . 2 . . Kinetic 21 | . . . 21 Thermal 41 | 16 16 . 9 Explosive . | . . . . Electromagnetic 14 | . 14 . . Robot Hit Streak 6 | 5 5 . 6 Robot Miss Streak 4 | 1 4 . 2 Penetration Max . | . . . . Secondary Targets 2 | . . . 2 Max Gunslinging Chain 1 | . . . 1 Shots Hit Robots 66 | 11 17 5 33 Core Hits 28 | 6 8 3 11 Critical Kills . | . . . . Critical Parts Destroyed . | . . . . Critical Strikes 2 | . 2 . . Burn 2 | . 2 . . Melee Attacks 37 | . . 21 16 Impact . | . . . . Slashing 37 | . . 21 16 Piercing . | . . . . Sneak Attacks 1 | . . 1 . Combat Hostiles . | . . . . Follow-up Attacks . | . . . . Damage Inflicted 1230 | 128 346 134 622 Guns 640 | 128 216 . 296 Cannons . | . . . . Explosions 130 | . 130 . . Melee 460 | . . 134 326 Ramming . | . . . . Kinetic 189 | . . . 189 Thermal 456 | 128 221 . 107 Explosive . | . . . . Electromagnetic 125 | . 125 . . Impact . | . . . . Slashing 460 | . . 134 326 Piercing . | . . . . Highest Corruption 10 | . . 10 10 Average Corruption 10 | . . 10 10 Corruption Purged . | . . . . Corruption Blocked . | . . . . Effects 8 | . . 1 7 Message Errors 2 | . . 1 1 Matter Fused 1 | . . . 1 Parts Rejected 1 | . . . 1 Data Loss (minor) 1 | . . . 1 Misfires 2 | . . . 2 Alerts 1 | . . . 1 Overload Shots . | . . . . Overflow Damage 5 | . 5 . . Projectiles . | . . . . Explosions 5 | . 5 . . Melee . | . . . . Knockbacks . | . . . . Impact . | . . . . Kinetic . | . . . . Secondary . | . . . . Self-Inflicted Damage 88 | . 88 . . Shots 2 | . 2 . . Rammed . | . . . . Targets Rammed . | . . . . Kicked . | . . . . Crushed . | . . . . Highest Temperature 198 | 60 198 . 102 Average Temperature 55 | 27 72 . 43 Received Heat Transfer 456 | . 123 78 255 Siege Activations . | . . . . Martial Activations . | . . . . Shielding Activations . | . . . . Robots Disrupted . | . . . . Combat Hostiles . | . . . . Robots Corrupted . | . . . . Combat Hostiles . | . . . . Parts Fried . | . . . . Impact Corruptions . | . . . . Robots Melted . | . . . . Combat Hostiles . | . . . . Parts Melted 7 | 1 1 . 5 Heat Transferred 1226 | 323 607 . 296 Parts Sabotaged . | . . . . Parts Stolen . | . . . . Parts Stripped . | . . . . Power Chain Reactions 2 | . 2 . . Alert | -11 -10 -9 -9 ------- Run | Yrd Mat Mat Sto Maximum Alert Level . | . . . . Low Security (%) 100 | 100 100 100 100 Level 1 . | . . . . Level 2 . | . . . . Level 3 . | . . . . Level 4 . | . . . . Level 5 . | . . . . High Security . | . . . . Max Security . | . . . . Peak Influence 140 | 10 84 55 140 Initial 22 | . . 22 . Average 25 | 1 31 21 41 Influence Increases 496 | 25 159 67 245 Destroy 0b10 Robot/C 300 | . 80 40 180 Destroy 0b10 Robot/NC 30 | 25 . 5 . Destroy Leader 90 | . 20 20 50 Successful Hack 5 | . 5 . . Disable Machine 60 | . 45 . 15 Destroy Structure 11 | . 9 2 . Influence Decreases 406 | 25 105 121 155 Entered New Map 32 | . . 32 . Time Decay 276 | 25 95 81 75 Lost Part 98 | . 10 8 80 Squads Dispatched 4 | . 2 1 1 Investigation 2 | . 1 . 1 Extermination . | . . . . Reinforcement 2 | . 1 1 . Assault . | . . . . Garrison . | . . . . Intercept . | . . . . Searches Triggered . | . . . . Construction Impeded . | . . . . Haulers Reinforced . | . . . . Active Scanning Responses . | . . . . Cargo Convoy Interrupts . | . . . . Stealth | -11 -10 -9 -9 --------- Run | Yrd Mat Mat Sto Distress Signals 1 | . 1 . . Communications Jammed . | . . . . Distress Signals . | . . . . Times Spotted 26 | . 10 4 12 Peak Tracking Total 6 | . 4 2 6 Tactical Retreats . | . . . . Traps | -11 -10 -9 -9 ------- Run | Yrd Mat Mat Sto Traps Triggered 1 | . . . 1 Indirectly . | . . . . Trap Hack Attempts . | . . . . Triggered . | . . . . Disarmed . | . . . . Reprogrammed . | . . . . Reused . | . . . . Traps Extracted . | . . . . Installed . | . . . . Triggered . | . . . . Machines | -11 -10 -9 -9 ---------- Run | Yrd Mat Mat Sto Machines Disabled 4 | . 3 . 1 Max in Single Turn 1 | . 1 . 1 Machines Repaired . | . . . . Machines Dismantled . | . . . . Machines Sabotaged . | . . . . Overloaded Fab Kills . | . . . . Hacking | -11 -10 -9 -9 --------- Run | Yrd Mat Mat Sto Machines Accessed 3 | . 2 . 1 Terminals 2 | . 2 . . Fabricators . | . . . . Repair Stations . | . . . . Recycling Units . | . . . . Scanalyzers . | . . . . Garrison Access 1 | . . . 1 Total Hacks 10 | . 7 . 3 Successful 3 | . 3 . . Failed 7 | . 4 . 3 Catastrophic 1 | . . . 1 Database Lockouts . | . . . . Manual 7 | . 7 . . Terminals 7 | . 7 . . Fabricators . | . . . . Repair Stations . | . . . . Recycling Units . | . . . . Scanalyzers . | . . . . Garrison Access 3 | . . . 3 Terminal Hacks 1 | . 1 . . Robot Analysis 1 | . 1 . . Fabricator Hacks . | . . . . Repair Station Hacks . | . . . . Recycling Unit Hacks . | . . . . Scanalyzer . | . . . . Garrison Access Hacks . | . . . . Unauthorized Hacks 2 | . 2 . . Terminals 2 | . 2 . . Botnet 2 | . 2 . . Fabricators . | . . . . Repair Stations . | . . . . Recycling Units . | . . . . Scanalyzers . | . . . . Garrison Access . | . . . . Data Cores Recovered . | . . . . Used . | . . . . Hacking Detections 3 | . 2 . 1 Full Trace Events 3 | . 2 . 1 Feedback Events . | . . . . Feedback Blocked . | . . . . Robot Schematics Acquired . | . . . . Robots Built . | . . . . Authchips . | . . . . Time . | . . . . Total Robot Build Rating . | . . . . Part Schematics Acquired . | . . . . Parts Built . | . . . . Authchips . | . . . . Time . | . . . . Total Part Build Rating . | . . . . Parts Repaired . | . . . . Time . | . . . . Parts Recycled . | . . . . Recycled Matter . | . . . . Retrieved Matter . | . . . . Retrieved Components . | . . . . Parts Scanalyzed . | . . . . Part Schematics Acquired . | . . . . Parts Damaged . | . . . . Bothacking | -11 -10 -9 -9 ------------ Run | Yrd Mat Mat Sto Used RIF Installer . | . . . . Robots Hacked . | . . . . Non-combat . | . . . . Combat . | . . . . Robot Hacks Applied . | . . . . Relay Couplers Released . | . . . . Fabnet Peak Effective % . | . . . . Robots Rewired . | . . . . Allies Hacked . | . . . . Hacks Repelled . | . . . . Allies | -11 -10 -9 -9 -------- Run | Yrd Mat Mat Sto Total Allies . | . . . . Largest Group . | . . . . Highest-Rated Group . | . . . . Highest-Rated Ally . | . . . . Total Orders . | . . . . Ally Attacks . | . . . . Total Damage . | . . . . Kills . | . . . . Allies Corrupted . | . . . . Allies Melted . | . . . . Intel | -11 -10 -9 -9 ------- Run | Yrd Mat Mat Sto Active Infowar (turns) 596 | 7 232 205 152 Sensors 194 | . . 194 . Terrain 596 | 7 232 205 152 Robot Analysis Total 1 | . 1 . . Derelict Logs Recovered . | . . . . Drone Launches . | . . . . Drone Recoveries . | . . . . Exploration | -11 -10 -9 -9 ------------- Run | Yrd Mat Mat Sto Turns Passed 788 | 148 232 205 203 Spaces Moved 288 | 72 95 69 52 Core 63 | 25 . 4 34 Treads 173 | 47 95 31 . Legs 52 | . . 34 18 Wheels . | . . . . Hover . | . . . . Flight . | . . . . Fastest Speed 50 | 50 160 120 120 Average Speed 154 | 143 160 148 169 Slowest Speed 200 | 200 160 200 200 Overloaded Moves . | . . . . Propulsion Burnouts . | . . . . Robots Hopped . | . . . . Potential Cave-ins 10 | . . 10 . Cave-ins Triggered 1 | . . 1 . Exploration Rate (%) 13 | 5 22 7 18 Regions Visited 3 Branch Regions 1 Pre-discovered Areas . | . . . . Known Exits Taken 1 | . . 1 . Unknown Exits Taken 2 | 1 1 . . Scrap Searched . | . . . . Spaces Dug 13 | . . 13 . Terrain Destroyed 20 | . 7 13 . Melee 13 | . . 13 . Projectile . | . . . . AOE 7 | . 7 . . Terrain Rammed . | . . . . Walls Destroyed . | . . . . Machines Disabled . | . . . . Actions | -11 -10 -9 -9 --------- Run | Yrd Mat Mat Sto Total 477 | 99 141 130 107 Wait 57 | . 20 30 7 Move 285 | 71 94 68 52 Hop . | . . . . Pick Up 26 | 11 4 4 7 Fast Attach 3 | 3 . . . Attach 17 | 4 1 3 9 Detach . | . . . . Swap 7 | 1 3 2 1 Drop 6 | 1 3 2 . Fire 39 | 8 16 . 15 Melee 37 | . . 21 16 Ram . | . . . . Kick . | . . . . Crush . | . . . . Escape Stasis . | . . . . Rewire . | . . . . Trap . | . . . . Miscellaneous . | . . . . Route ------- -11/Scrapyard -10/Materials (discovered 2 exits: [*Mat] / [Min]) -9/Materials -9/Storage History --------- Turn | Location | Event 13 | -11/Scrapyard | Discovered new exit (range 15) 149 | -11/Scrapyard | Entered Materials 316 | -10/Materials | Build established: Mutant 330 | -10/Materials | Discovered new exit (range 15) 355 | -10/Materials | Discovered new exit (range 5) 381 | -10/Materials | Entered another Materials area 381 | -9/Materials | Evolved 2 slots: Utility x2 419 | -9/Materials | Discovered new exit (range 16) 577 | -9/Materials | Crushed by falling debris 577 | -9/Materials | System corruption reached 10% 584 | -9/Materials | Identified exit to Storage 586 | -9/Materials | Entered Storage 608 | -9/Storage | Lost 3 parts (2n1u) 742 | -9/Storage | Destroyed 7 combat bots 742 | -9/Storage | Core integrity fell below 50% 755 | -9/Storage | Core integrity fell below 20% 769 | -9/Storage | Lost 5 parts (2n1u2w) 789 | -9/Storage | Destroyed by L-31 Rogue with Katana Last Messages --------------- 00750_ R-06 Scavenger collects Ion Engine. 00751_ R-06 Scavenger collects Beam Rifle. 00753_ R-06 Scavenger collects Lgt. Treads. 00756_ R-06 Scavenger collects Lgt. Armor Plating. 00757_ System corrupted: Mining Claw rejected. 00769_ Destroyed Lgt. Armor Plating. 00769_ Beam Rifle melted. 00769_ Hvy. Assault Rifle melted. 00769_ Heat Sink melted. 00769_ Lgt. Treads melted. 00769_ Y-45 Defender destroyed. 00769_ M-13 Machinist repairs S-10 Pest Flight Unit. 00772_ Beam Rifle destroyed. 00774_ S-10 Pest destroyed. 00777_ Acquired Mining Claw. 00781_ System corrupted: Component data lost. 00782_ Acquired Imp. Ion Engine. 00786_ Med. Laser destroyed. Map ----- +----------------------------------------------------+ | ???????????????????????????????????????????? | | ???????????????????????????????????????????? | | ???????????????????????????????????????????? | | ???????????????????????????????????????????? | | ???????????????????????????????????????????? | | ???????????????????????????????????????????? | | ???????????????????????????????????????????? | | ???????????????????????????????????????????? | | ??????????????? ???????????????????????????? | | ???????????????????????????????????????????? | | ???????????????????????????????????????????? | | ??????????????? ??????????????????????????? | | ??????????????? ??#????????#??????????????? | | ??????????????? ?????????????????????????? | | ????????????? ? ????????????????????????? | | ??????????????? ???#????????????????????? | | ??????????????? ??#?????????????????????? | | ????????????????? ???#???? ???????????????? | | ????????????? ####/####????????????????????? | | ??????????????# #????????????????????? | | ??????????????# """ ##??????????#????????? | | ??????????????# """ #???????????????????? | | ??????????????# """ m##???##??????????????? | | ??????????????# =%* g%#? ? ?? #??????????? | | ?????????###########l###??""" #??????????? | | ???? ????# @% #? """ #??????????? | | ?????????# + """ #??????????? | | ?????????# # ???????????? | | ???? ???# ######### # """ #??????????? | | ??????? + #?####### # """ ???????????? | | ?? ???""?# #?#"""## # """ #??????????? | | ?????????# #?#"R"## # #??????????? | | ???????" # ###" "### #########??????????? | | ?????????# ## ##??????????????????? | | ????#???## ## #???????????????????? | | ????????# # %##??????????????????? | | ?#??????# # #???????????????????? | | ?#??????# ! + ]= #??#????????????????? | | #???????# ! # ] #???????????????????? | | ???#??#?# # = #???????????????????? | | #?######## ## #???????????????????? | | ?? =# ## #?#?????????????????? | | ? """"" # ###########???????????????????? | | ? """"" # #???#?????????????????????????? | | # """"" + #?????????????????????????????? | | # # #??????#???#??????????????????? | | # """"" # ##??????????#?????????????????? | | # """"" # #??#??????????????????????????? | | # """"" # #??????#?????????#????????????? | | # # #??????????????#??????????????? | +----------------------------------------------------+ Best States ------------- Heat Dissipation 28 Energy Generation 10 Energy Capacity 125 Matter Stores 300 Matter Capacity 300 Sight Range 16 Robot Scan Range 14 Terrain Scan Range 16 Terrain Scan Density 10 Evasion (%) 55 Recoil Reduction 2 Offensive Hacking 10 Item Schematics ----------------- None Robot Schematics ------------------ None Fabricated ------------ Nothing Repaired ---------- Nothing Alien Tech Used ----------------- None Achievements -------------- None Challenges ------------ None Game ------ Seed TachyonServoMicrothruster Manual? 0 Play Time 00:13:16 Cumulative 35.7 hours Start 2025.08.08 @ 21:38:27 End 2025.08.08 @ 21:59:27 Sessions 1 Manual Loads 0 Difficulty Rogue Special Mode None Game No. 74 Rogue 71 Adventurer 3 Explorer 0 Win Type - Total 0 Types 0/0/0/0/0/0/0/0/0/0 Lore% 27 Gallery% 26 Achievement% 27 Wizard Run 0 Options --------- Layout 1 ASCII 0 Keyboard 0 Movement Mouse Keybinds 0 Fullscreen 1 Font 24/Smallcaps Map View 50x35 Zoom Use 0% Tactical HUD 1 Map Filters NONE Filters NONE Steam 1 RUN: 9f51a639-625d-4005-99a4-1bf055a9de19